fUSD/lending_fUSD_20240907
["ID","MTS","AMOUNT","RATE_DAILY","PERIOD"]
[337467386,1725677485290,-1946.83,0.00014996,2]
[337467387,1725677485301,-1535.5,0.00014996,2]
[337467388,1725677485309,-614.17535066,0.00014996,2]
[337467389,1725677485318,-581.76,0.00014996,2]
[337467390,1725677485328,-500.0,0.00014996,2]
[337467391,1725677485337,-500.0,0.00014996,2]
[337467392,1725677485346,-1110.96,0.00014996,2]
[337467393,1725677485355,-500.0,0.00014996,2]
[337467394,1725677485364,-500.0,0.00014996,2]
[337467395,1725677485374,-844.54,0.00014996,2]
[337467396,1725677485384,-666.23,0.00014996,2]
[337467397,1725677485393,-523.32,0.00014996,2]
[337467398,1725677485404,-614.38,0.00014996,2]
[337467399,1725677485414,-500.0,0.00014996,2]
[337467400,1725677485424,-500.0,0.00014996,2]
[337467401,1725677485434,-500.0,0.00014996,2]
[337467402,1725677485444,-500.0,0.00014996,2]
[337467403,1725677485455,-500.0,0.00014996,2]
[337467404,1725677485464,-752.91,0.00014996,2]
[337467405,1725677485474,-1205.59,0.00014996,2]
[337467406,1725677485485,-500.0,0.00014996,2]
[337467407,1725677485496,-500.0,0.00014996,2]
[337467408,1725677485507,-1058.77,0.00014996,2]
[337467409,1725677485516,-500.0,0.00014996,2]
[337467410,1725677485527,-185.36,0.00014996,2]
[337467411,1725677485538,-500.0,0.00014996,2]
[337467412,1725677485547,-500.0,0.00014996,2]
[337467413,1725677485556,-500.0,0.00014996,2]
[337467414,1725677485566,-1133.25,0.00014996,2]
[337467415,1725677485575,-556.45,0.00014996,2]
[337467416,1725677485586,-500.0,0.00014996,2]
[337467417,1725677485595,-500.0,0.00014996,2]
[337467418,1725677485604,-500.0,0.00014996,2]
[337467419,1725677485614,-488.57565147,0.00014996,2]
[337467420,1725677485624,-508.38505192,0.00014996,2]
[337467421,1725677485634,-500.0,0.00014996,2]
[337467422,1725677485644,-876.75,0.00014996,2]
[337467423,1725677485653,-517.99,0.00014996,2]
[337467424,1725677485663,-500.0,0.00014996,2]
[337467425,1725677485672,-589.90756253,0.00014996,2]
[337467426,1725677485682,-500.0,0.00014996,2]
[337467427,1725677485692,-608.98,0.00014996,2]
[337467428,1725677485702,-361.45804231,0.00014996,2]
[337467429,1725677485711,-948.01,0.00014996,2]
[337467430,1725677485720,-500.0,0.00014996,2]
[337467431,1725677485729,-1030.8,0.00014996,2]
[337467432,1725677485739,-500.0,0.00014996,2]
[337467433,1725677485749,-830.02,0.00014996,2]
[337467434,1725677485758,-500.0,0.00014996,2]
[337467435,1725677485767,-687.57,0.00014996,2]
[337467436,1725677485777,-542.27,0.00014996,2]
[337467437,1725677485788,-535.96,0.00014996,2]
[337467438,1725677485798,-866.39,0.00014996,2]
[337467439,1725677485807,-624.27,0.00014996,2]
[337467440,1725677485818,-500.0,0.00014996,2]
[337467441,1725677485827,-705.76,0.00014996,2]
[337467442,1725677485836,-500.0,0.00014996,2]
[337467443,1725677485846,-500.0,0.00014996,2]
[337467444,1725677485856,-500.0,0.00014996,2]
[337467445,1725677485866,-500.0,0.00014996,2]
[337467446,1725677485875,-500.0,0.00014996,2]
[337467447,1725677485884,-512.13,0.00014996,2]
[337467448,1725677485893,-500.0,0.00014996,2]
[337467449,1725677485902,-593.78,0.00014996,2]
[337467450,1725677485911,-519.33987477,0.00014996,2]
[337467451,1725677485921,-500.0,0.00014996,2]
[337467452,1725677485931,-500.0,0.00014996,2]
[337467453,1725677485940,-2016.4,0.00014996,2]
[337467454,1725677485951,-500.0,0.00014996,2]
[337467455,1725677485961,-500.0,0.00014996,2]
[337467456,1725677485970,-500.0,0.00014996,2]
[337467457,1725677485980,-1573.01,0.00014996,2]
[337467458,1725677485990,-500.0,0.00014996,2]
[337467459,1725677486000,-500.0,0.00014996,2]
[337467460,1725677486011,-512.83,0.00014996,2]
[337467461,1725677486022,-500.0,0.00014996,2]
[337467462,1725677486035,-500.0,0.00014996,2]
[337467463,1725677486044,-552.19,0.00014996,2]
[337467464,1725677486054,-256.91300484,0.00014997,2]
[337467465,1725677486064,-500.0,0.00014997,2]
[337467466,1725677486074,-151.0,0.00014997,2]
[337467467,1725677486083,-1051.14,0.00014997,2]
[337467468,1725677486093,-500.0,0.00014997,2]
[337467469,1725677486103,-151.0,0.00014997,2]
[337467470,1725677486113,-151.0,0.00014997,2]
[337467471,1725677486123,-500.0,0.00014997,2]
[337467472,1725677486134,-500.0,0.00014997,2]
[337467473,1725677486144,-500.0,0.00014997,2]
[337467474,1725677486154,-151.0,0.00014997,2]
[337467475,1725677486165,-500.0,0.00014997,2]
[337467476,1725677486175,-151.0,0.00014997,2]
[337467477,1725677486185,-500.0,0.00014997,2]
[337467478,1725677486196,-151.0,0.00014997,2]
[337467479,1725677486208,-151.0,0.00014997,2]
[337467480,1725677486218,-516.72,0.00014997,2]
[337467481,1725677486229,-474.977421,0.00014997,2]
[337467482,1725677486240,-474.977421,0.00014997,2]
[337467483,1725677486249,-500.0,0.00014997,2]
[337467484,1725677486259,-1608.63,0.00014997,2]
[337467485,1725677486268,-151.0,0.00014997,2]
[337467486,1725677486278,-151.0,0.00014997,2]
[337467487,1725677486288,-500.0,0.00014997,2]
[337467488,1725677486298,-500.0,0.00014997,2]
[337467489,1725677486308,-915.04,0.00014997,2]
[337467490,1725677486317,-915.04,0.00014997,2]
[337467491,1725677486326,-1236.46,0.00014997,2]
[337467492,1725677486335,-576.99,0.00014997,2]
[337467493,1725677486344,-319.6025765,0.00014997,2]
[337467494,1725677486353,-151.0,0.00014997,2]
[337467495,1725677486362,-151.0,0.00014997,2]
[337467496,1725677486371,-500.0,0.00014997,2]
[337467497,1725677486380,-897.13,0.00014997,2]
[337467498,1725677486389,-795.48,0.00014997,2]
[337467499,1725677486399,-588.65,0.00014997,2]
[337467500,1725677486410,-588.65,0.00014997,2]
[337467501,1725677486419,-151.0,0.00014997,2]
[337467502,1725677486427,-500.0,0.00014997,2]
[337467503,1725677486436,-629.38,0.00014997,2]
[337467504,1725677486447,-629.38,0.00014997,2]
[337467505,1725677486456,-877.77,0.00014997,2]
[337467506,1725677486470,-500.0,0.00014997,2]
[337467507,1725677486480,-500.0,0.00014997,2]
[337467508,1725677486489,-1462.3,0.00014997,2]
[337467509,1725677486498,-1043.47,0.00014997,2]
[337467510,1725677486508,-1043.47,0.00014997,2]
[337467511,1725677486517,-2200.19,0.00014997,2]
[337467512,1725677486526,-897.65,0.00014997,2]
[337467513,1725677486536,-500.0,0.00014997,2]
[337467514,1725677486545,-500.0,0.00014997,2]
[337467515,1725677486554,-651.02,0.00014997,2]
[337467516,1725677486562,-651.02,0.00014997,2]
[337467517,1725677486571,-561.83,0.00014997,2]
[337467518,1725677486581,-561.83,0.00014997,2]
[337467519,1725677486591,-670.34,0.00014997,2]
[337467520,1725677486600,-552.27,0.00014997,2]
[337467521,1725677486609,-552.27,0.00014997,2]
[337467522,1725677486618,-618.34,0.00014997,2]
[337467523,1725677486628,-500.0,0.00014997,2]
[337467524,1725677486637,-500.0,0.00014997,2]
[337467525,1725677486646,-1460.66,0.00014997,2]
[337467526,1725677486655,-642.23,0.00014997,2]
[337467527,1725677486665,-500.0,0.00014997,2]
[337467528,1725677486677,-500.0,0.00014997,2]
[337467529,1725677486686,-512.086716,0.00014997,2]
[337467530,1725677486696,-512.086716,0.00014997,2]
[337467531,1725677486705,-500.0,0.00014997,2]
[337467532,1725677486714,-500.0,0.00014997,2]
[337467533,1725677486723,-518.92,0.00014997,2]
[337467534,1725677486732,-2439.28,0.00014997,2]
[337467535,1725677486741,-670.32,0.00014997,2]
[337467536,1725677486750,-500.0,0.00014997,2]
[337467537,1725677486759,-2794.32,0.00014997,2]
[337467538,1725677486768,-2794.32,0.00014997,2]
[337467539,1725677486777,-1086.72,0.00014997,2]
[337467540,1725677486788,-1086.72,0.00014997,2]
[337467541,1725677486797,-151.0,0.00014997,2]
[337467542,1725677486806,-752.86,0.00014997,2]
[337467543,1725677486815,-752.86,0.00014997,2]
[337467544,1725677486825,-506.67,0.00014997,2]
[337467545,1725677486834,-506.67,0.00014997,2]
[337467546,1725677486843,-1015.98,0.00014997,2]
[337467547,1725677486852,-500.0,0.00014997,2]
[337467548,1725677486862,-500.0,0.00014997,2]
[337467549,1725677486871,-500.0,0.00014997,2]
[337467550,1725677486880,-1850.04,0.00014997,2]
[337467551,1725677486890,-3259.37,0.00014997,2]
[337467552,1725677486899,-3259.37,0.00014997,2]
[337467553,1725677486909,-500.0,0.00014997,2]
[337467554,1725677486918,-500.0,0.00014997,2]
[337467555,1725677486927,-500.0,0.00014997,2]
[337467556,1725677486936,-1853.13,0.00014997,2]
[337467557,1725677486946,-1853.13,0.00014997,2]
[337467558,1725677486955,-1139.03,0.00014997,2]
[337467559,1725677486965,-944.21992274,0.00014997,2]
[337467560,1725677486981,-871.35007726,0.00014997,2]
[337467561,1725677486991,-1538.00145375,0.00014997,2]
[337467562,1725677487017,-500.0,0.00014794,2]
[337467563,1725677487027,-277.56854625,0.00014997,2]
[337467564,1725677487037,-457.85114254,0.00014997,2]
[337467565,1725677487046,-500.0,0.00014997,2]
[337467566,1725677487055,-500.0,0.00014997,2]
[337467567,1725677487064,-500.0,0.00014997,2]
[337467568,1725677487074,-500.0,0.00014997,2]
[337467569,1725677487084,-1446.73,0.00014997,2]
[337467570,1725677487093,-1446.73,0.00014997,2]
[337467571,1725677487103,-500.0,0.00014997,2]
[337467572,1725677487112,-500.0,0.00014997,2]
[337467573,1725677487122,-844.54,0.00014997,2]
[337467574,1725677487131,-844.54,0.00014997,2]
[337467575,1725677487141,-1066.99,0.00014997,2]
[337467576,1725677487151,-838.85,0.00014997,2]
[337467577,1725677487160,-2487.08,0.00014997,2]
[337467578,1725677487170,-2487.08,0.00014997,2]
[337467579,1725677487180,-973.13,0.00014997,2]
[337467580,1725677487189,-696.2,0.00014997,2]
[337467581,1725677487199,-696.2,0.00014997,2]
[337467582,1725677487209,-179.332113,0.00014997,2]
[337467583,1725677487219,-837.29,0.00014997,2]
[337467584,1725677487229,-179.332113,0.00014997,2]
[337467585,1725677487238,-614.38,0.00014997,2]
[337467586,1725677487248,-500.0,0.00014997,2]
[337467587,1725677487257,-500.0,0.00014997,2]
[337467588,1725677487267,-614.38,0.00014997,2]
[337467589,1725677487276,-151.0,0.00014997,2]
[337467590,1725677487288,-571.68,0.00014997,2]
[337467591,1725677487299,-571.68,0.00014997,2]
[337467592,1725677487309,-500.0,0.00014997,2]
[337467593,1725677487320,-522.01,0.00014997,2]
[337467594,1725677487329,-500.0,0.00014997,2]
[337467595,1725677487339,-500.0,0.00014997,2]
[337467596,1725677487349,-2440.28,0.00014997,2]
[337467597,1725677487359,-500.0,0.00014997,2]
[337467598,1725677487369,-2440.28,0.00014997,2]
[337467599,1725677487378,-855.57,0.00014997,2]
[337467600,1725677487388,-245.713122,0.00014997,2]
[337467601,1725677487398,-2107.09,0.00014997,2]
[337467602,1725677487407,-2107.09,0.00014997,2]
[337467603,1725677487418,-500.0,0.00014997,2]
[337467604,1725677487428,-500.0,0.00014997,2]
[337467605,1725677487437,-500.0,0.00014997,2]
[337467606,1725677487447,-245.713122,0.00014997,2]
[337467607,1725677487457,-500.0,0.00014997,2]
[337467608,1725677487467,-500.0,0.00014997,2]
[337467609,1725677487477,-500.0,0.00014997,2]
[337467610,1725677487486,-500.0,0.00014997,2]
[337467611,1725677487649,-556.62,0.00014997,2]
[337467612,1725677487659,-556.62,0.00014997,2]
[337467613,1725677487670,-500.0,0.00014997,2]
[337467614,1725677487680,-739.5,0.00014997,2]
[337467615,1725677487689,-739.5,0.00014997,2]
[337467616,1725677487699,-500.0,0.00014997,2]
[337467617,1725677487709,-1260.76,0.00014997,2]
[337467618,1725677487719,-1260.76,0.00014997,2]
[337467619,1725677487728,-284.163188,0.00014997,2]
[337467620,1725677487738,-500.0,0.00014997,2]
[337467621,1725677487747,-284.163188,0.00014997,2]
[337467622,1725677487757,-500.0,0.00014997,2]
[337467623,1725677487766,-500.0,0.00014997,2]
[337467624,1725677487776,-501.03,0.00014997,2]
[337467625,1725677487789,-752.91,0.00014997,2]
[337467626,1725677487804,-752.91,0.00014997,2]
[337467627,1725677487813,-500.0,0.00014997,2]
[337467628,1725677487822,-500.0,0.00014997,2]
[337467629,1725677487832,-500.0,0.00014997,2]
[337467630,1725677487841,-550.73,0.00014997,2]
[337467631,1725677487851,-550.73,0.00014997,2]
[337467632,1725677487860,-1205.59,0.00014997,2]
[337467633,1725677487869,-1205.59,0.00014997,2]
[337467634,1725677487879,-500.0,0.00014997,2]
[337467635,1725677487889,-500.0,0.00014997,2]
[337467636,1725677487898,-500.0,0.00014997,2]
[337467637,1725677487908,-4636.99,0.00014997,2]
[337467638,1725677487917,-4636.99,0.00014997,2]
[337467639,1725677487926,-500.0,0.00014997,2]
[337467640,1725677487935,-500.0,0.00014997,2]
[337467641,1725677487944,-624.56,0.00014997,2]
[337467642,1725677487954,-958.54,0.00014997,2]
[337467643,1725677487964,-680.9,0.00014997,2]
[337467644,1725677487973,-534.43965244,0.00014997,2]
[337467645,1725677487983,-3374.62,0.00014997,2]
[337467646,1725677487992,-3374.62,0.00014997,2]
[337467647,1725677488002,-500.0,0.00014997,2]
[337467648,1725677488011,-500.0,0.00014997,2]
[337467649,1725677488021,-1058.77,0.00014997,2]
[337467650,1725677488030,-1058.77,0.00014997,2]
[337467651,1725677488039,-419.2,0.00014997,2]
[337467652,1725677488049,-500.0,0.00014997,2]
[337467653,1725677488058,-500.0,0.00014997,2]
[337467654,1725677488067,-5020.13,0.00014997,2]
[337467655,1725677488076,-5020.13,0.00014997,2]
[337467656,1725677488085,-500.0,0.00014997,2]
[337467657,1725677488094,-500.0,0.00014997,2]
[337467658,1725677488103,-500.0,0.00014997,2]
[337467659,1725677488112,-500.0,0.00014997,2]
[337467660,1725677488121,-500.0,0.00014997,2]
[337467661,1725677488130,-500.0,0.00014997,2]
[337467662,1725677488139,-500.0,0.00014997,2]
[337467663,1725677488148,-500.0,0.00014997,2]
[337467664,1725677488157,-597.83,0.00014997,2]
[337467665,1725677488166,-597.83,0.00014997,2]
[337467666,1725677488175,-156.972938,0.00014997,2]
[337467667,1725677488184,-500.0,0.00014997,2]
[337467668,1725677488193,-500.0,0.00014997,2]
[337467669,1725677488203,-500.0,0.00014997,2]
[337467670,1725677488213,-500.0,0.00014997,2]
[337467671,1725677488222,-539.35,0.00014997,2]
[337467672,1725677488231,-7172.41,0.00014997,2]
[337467673,1725677488240,-7172.41,0.00014997,2]
[337467674,1725677488250,-500.0,0.00014997,2]
[337467675,1725677488258,-500.0,0.00014997,2]
[337467676,1725677488268,-380.3,0.00014997,2]
[337467677,1725677488277,-500.0,0.00014997,2]
[337467678,1725677488290,-500.0,0.00014997,2]
[337467679,1725677488299,-1133.25,0.00014997,2]
[337467680,1725677488308,-1133.25,0.00014997,2]
[337467681,1725677488318,-1137.17,0.00014997,2]
[337467682,1725677488327,-1137.17,0.00014997,2]
[337467683,1725677488336,-556.45,0.00014997,2]
[337467684,1725677488345,-556.45,0.00014997,2]
[337467685,1725677488354,-500.0,0.00014997,2]
[337467686,1725677488363,-500.0,0.00014997,2]
[337467687,1725677488374,-636.2,0.00014997,2]
[337467688,1725677488383,-889.78,0.00014997,2]
[337467689,1725677488392,-229.45,0.00014997,2]
[337467690,1725677488402,-1281.02,0.00014997,2]
[337467691,1725677488412,-1281.02,0.00014997,2]
[337467692,1725677488424,-501.47809188,0.00014997,2]
[337467693,1725677488433,-500.0,0.00014997,2]
[337467694,1725677488443,-500.0,0.00014997,2]
[337467695,1725677488452,-500.0,0.00014997,2]
[337467696,1725677488461,-500.0,0.00014997,2]
[337467697,1725677488470,-500.0,0.00014997,2]
[337467698,1725677488483,-500.0,0.00014997,2]
[337467699,1725677488493,-500.0,0.00014997,2]
[337467700,1725677488503,-500.0,0.00014997,2]
[337467701,1725677488512,-500.0,0.00014997,2]
[337467702,1725677488521,-278.8117046,0.00014997,2]
[337467703,1725677488530,-582.54,0.00014997,2]
[337467704,1725677488541,-500.0,0.00014997,2]
[337467705,1725677488551,-500.0,0.00014997,2]
[337467706,1725677488561,-500.0,0.00014997,2]
[337467707,1725677488570,-876.75,0.00014997,2]
[337467708,1725677488579,-876.75,0.00014997,2]
[337467709,1725677488589,-1106.53,0.00014997,2]
[337467710,1725677488598,-1106.53,0.00014997,2]
[337467711,1725677488608,-210.48796089,0.00014997,2]
[337467712,1725677488620,-517.99,0.00014997,2]
[337467713,1725677488629,-517.99,0.00014997,2]
[337467714,1725677488639,-517.99,0.00014997,2]
[337467715,1725677488648,-500.0,0.00014997,2]
[337467716,1725677488658,-500.0,0.00014997,2]
[337467717,1725677488667,-500.0,0.00014997,2]
[337467718,1725677488677,-537.83,0.00014997,2]
[337467719,1725677488686,-500.0,0.00014997,2]
[337467720,1725677488695,-537.83,0.00014997,2]
[337467721,1725677488705,-500.0,0.00014997,2]
[337467722,1725677488714,-242.68,0.00014997,2]
[337467723,1725677488724,-608.98,0.00014997,2]
[337467724,1725677488734,-608.98,0.00014997,2]
[337467725,1725677488744,-608.98,0.00014997,2]
[337467726,1725677488753,-948.01,0.00014997,2]
[337467727,1725677488762,-948.01,0.00014997,2]
[337467728,1725677488772,-432.41576736,0.00014997,2]
[337467729,1725677488781,-500.0,0.00014997,2]
[337467730,1725677488792,-585.97,0.00014997,2]
[337467731,1725677488801,-500.0,0.00014997,2]
[337467732,1725677488810,-1030.8,0.00014997,2]
[337467733,1725677488819,-1030.8,0.00014997,2]
[337467734,1725677488828,-1030.8,0.00014997,2]
[337467735,1725677488838,-500.0,0.00014997,2]
[337467736,1725677488847,-500.0,0.00014997,2]
[337467737,1725677488856,-500.0,0.00014997,2]
[337467738,1725677488865,-500.0,0.00014997,2]
[337467739,1725677488875,-500.0,0.00014997,2]
[337467740,1725677488884,-500.0,0.00014997,2]
[337467741,1725677488893,-500.0,0.00014997,2]
[337467742,1725677488902,-830.02,0.00014997,2]
[337467743,1725677488912,-830.02,0.00014997,2]
[337467744,1725677488921,-830.02,0.00014997,2]
[337467745,1725677488930,-500.0,0.00014997,2]
[337467746,1725677488939,-500.0,0.00014997,2]
[337467747,1725677488948,-500.0,0.00014997,2]
[337467748,1725677488957,-500.0,0.00014997,2]
[337467749,1725677488966,-687.57,0.00014997,2]
[337467750,1725677488975,-687.57,0.00014997,2]
[337467751,1725677488985,-2437.6,0.00014997,2]
[337467752,1725677488993,-2437.6,0.00014997,2]
[337467753,1725677489002,-720.08,0.00014997,2]
[337467754,1725677489012,-720.08,0.00014997,2]
[337467755,1725677489021,-542.27,0.00014997,2]
[337467756,1725677489030,-542.27,0.00014997,2]
[337467757,1725677489040,-500.0,0.00014997,2]
[337467758,1725677489049,-535.96,0.00014997,2]
[337467759,1725677489059,-535.96,0.00014997,2]
[337467760,1725677489067,-2595.16,0.00014997,2]
[337467761,1725677489076,-2595.16,0.00014997,2]
[337467762,1725677489085,-418.25200995,0.00014997,2]
[337467763,1725677489094,-500.0,0.00014997,2]
[337467764,1725677489103,-866.39,0.00014997,2]
[337467765,1725677489113,-866.39,0.00014997,2]
[337467766,1725677489122,-866.39,0.00014997,2]
[337467767,1725677489132,-624.27,0.00014997,2]
[337467768,1725677489141,-624.27,0.00014997,2]
[337467769,1725677489150,-500.0,0.00014997,2]
[337467770,1725677489159,-500.0,0.00014997,2]
[337467771,1725677489169,-705.76,0.00014997,2]
[337467772,1725677489178,-494.47049863,0.00014997,2]
[337467773,1725677489187,-705.76,0.00014997,2]
[337467774,1725677489196,-3199.88,0.00014997,2]
[337467775,1725677489205,-3199.88,0.00014997,2]
[337467776,1725677489214,-157.97307837,0.00014997,2]
[337467777,1725677489223,-500.0,0.00014997,2]
[337467778,1725677489232,-500.0,0.00014997,2]
[337467779,1725677489242,-500.0,0.00014997,2]
[337467780,1725677489250,-500.0,0.00014997,2]
[337467781,1725677489260,-766.45,0.00014997,2]
[337467782,1725677489269,-766.45,0.00014997,2]
[337467783,1725677489278,-500.0,0.00014997,2]
[337467784,1725677489288,-500.0,0.00014997,2]
[337467785,1725677489298,-500.0,0.00014997,2]
[337467786,1725677489308,-500.0,0.00014997,2]
[337467787,1725677489317,-500.0,0.00014997,2]
[337467788,1725677489327,-500.0,0.00014997,2]
[337467789,1725677489336,-500.0,0.00014997,2]
[337467790,1725677489346,-500.0,0.00014997,2]
[337467791,1725677489355,-500.0,0.00014997,2]
[337467792,1725677489364,-617.69,0.00014997,2]
[337467793,1725677489373,-502.08599943,0.00014997,2]
[337467794,1725677489382,-617.69,0.00014997,2]
[337467795,1725677489391,-512.13,0.00014997,2]
[337467796,1725677489402,-512.13,0.00014997,2]
[337467797,1725677489414,-500.0,0.00014997,2]
[337467798,1725677489424,-593.78,0.00014997,2]
[337467799,1725677489433,-500.0,0.00014997,2]
[337467800,1725677489442,-593.78,0.00014997,2]
[337467801,1725677489453,-500.0,0.00014997,2]
[337467802,1725677489463,-500.0,0.00014997,2]
[337467803,1725677489474,-500.0,0.00014997,2]
[337467804,1725677489486,-500.0,0.00014997,2]
[337467805,1725677489496,-501.47216117,0.00014997,2]
[337467806,1725677489507,-500.0,0.00014997,2]
[337467807,1725677489517,-500.0,0.00014997,2]
[337467808,1725677489527,-2016.4,0.00014997,2]
[337467809,1725677489537,-2016.4,0.00014997,2]
[337467810,1725677489546,-500.0,0.00014997,2]
[337467811,1725677489556,-500.0,0.00014997,2]
[337467812,1725677489565,-500.0,0.00014997,2]
[337467813,1725677489576,-500.0,0.00014997,2]
[337467814,1725677489585,-827.88,0.00014997,2]
[337467815,1725677489595,-827.88,0.00014997,2]
[337467816,1725677489604,-500.0,0.00014997,2]
[337467817,1725677489613,-500.0,0.00014997,2]
[337467818,1725677489623,-500.0,0.00014997,2]
[337467819,1725677489632,-500.0,0.00014997,2]
[337467820,1725677489641,-500.0,0.00014997,2]
[337467821,1725677489650,-500.0,0.00014997,2]
[337467822,1725677489659,-1573.01,0.00014997,2]
[337467823,1725677489669,-1573.01,0.00014997,2]
[337467824,1725677489678,-500.0,0.00014997,2]
[337467825,1725677489688,-500.0,0.00014997,2]
[337467826,1725677489697,-500.0,0.00014997,2]
[337467827,1725677489706,-500.0,0.00014997,2]
[337467828,1725677489715,-500.0,0.00014997,2]
[337467829,1725677489725,-552.09,0.00014997,2]
[337467830,1725677489734,-500.0,0.00014997,2]
[337467831,1725677489744,-500.0,0.00014997,2]
[337467832,1725677489753,-500.0,0.00014997,2]
[337467833,1725677489762,-498.05091787,0.00014997,2]
[337467834,1725677489772,-512.83,0.00014997,2]
[337467835,1725677489782,-512.83,0.00014997,2]
[337467836,1725677489792,-500.0,0.00014997,2]
[337467837,1725677489801,-500.0,0.00014997,2]
[337467838,1725677489811,-151.0,0.00014997,2]
[337467839,1725677489820,-500.0,0.00014997,2]
[337467840,1725677489830,-500.0,0.00014997,2]
[337467841,1725677489839,-552.19,0.00014997,2]
[337467842,1725677489848,-500.0,0.00014997,2]
[337467843,1725677489857,-151.0,0.00014998,2]
[337467844,1725677489866,-180.674951,0.00014998,2]
[337467845,1725677489875,-331.023624,0.00014998,2]
[337467846,1725677489884,-331.023624,0.00014998,2]
[337467847,1725677489894,-500.0,0.00014998,2]
[337467848,1725677489903,-615.58269952,0.00014998,2]
[337467849,1725677489912,-1051.14,0.00014998,2]
[337467850,1725677489921,-1051.14,0.00014998,2]
[337467851,1725677489931,-1051.14,0.00014998,2]
[337467852,1725677489941,-1051.14,0.00014998,2]
[337467853,1725677489950,-500.0,0.00014998,2]
[337467854,1725677489959,-500.0,0.00014998,2]
[337467855,1725677490009,-500.0,0.00014998,2]
[337467856,1725677490019,-500.0,0.00014998,2]
[337467857,1725677490029,-500.0,0.00014998,2]
[337467858,1725677490040,-500.0,0.00014998,2]
[337467859,1725677490049,-500.0,0.00014998,2]
[337467860,1725677490058,-500.0,0.00014998,2]
[337467861,1725677490067,-500.0,0.00014998,2]
[337467862,1725677490076,-500.0,0.00014998,2]
[337467863,1725677490086,-500.0,0.00014998,2]
[337467864,1725677490095,-232.28347458,0.00014998,2]
[337467865,1725677490105,-500.0,0.00014998,2]
[337467866,1725677490114,-500.0,0.00014998,2]
[337467867,1725677490123,-500.0,0.00014998,2]
[337467868,1725677490132,-290.68196463,0.00014998,2]
[337467869,1725677490142,-500.0,0.00014998,2]
[337467870,1725677490152,-500.0,0.00014998,2]
[337467871,1725677490161,-500.0,0.00014998,2]
[337467872,1725677490171,-500.0,0.00014998,2]
[337467873,1725677490182,-500.0,0.00014998,2]
[337467874,1725677490191,-500.0,0.00014998,2]
[337467875,1725677490202,-443.2736145,0.00014998,2]
[337467876,1725677490212,-151.0,0.00014998,2]
[337467877,1725677490222,-516.72,0.00014998,2]
[337467878,1725677490231,-516.72,0.00014998,2]
[337467879,1725677490240,-516.72,0.00014998,2]
[337467880,1725677490250,-516.72,0.00014998,2]
[337467881,1725677490259,-900.56,0.00014998,2]
[337467882,1725677490269,-900.56,0.00014998,2]
[337467883,1725677490278,-900.56,0.00014998,2]
[337467884,1725677490287,-900.56,0.00014998,2]
[337467885,1725677490298,-900.56,0.00014998,2]